Workbook

Sheet Instructions
A1: This GENSEL spreadsheet combines:
B2: 1 | C2: MTINDEX: Multi Trait Selection Index: works out optimal weights, accurcay of MTEBVs and selection response
B3: 2 | C3: Optimizes selection across age classes (it calculates index accuracy for each age class and each sex and optimizes generation interval)
B4: 3 | C4: GenomicSelection (modeled by defining a "VQTL" for each trait, i.e. what proportion of VA can be predicted)
B5: 4 | C5: Various industry indexes to be implemented. Can choose an index and the objective traits as well as the 'measured traits' will populate the main sheet.
C9: Use CONTROL CENTRE as your main sheet. It borrows genetic parameters and economic values from other sheets | N9: Genetic and phenotypic parameters are given as varinaces on diagonal and correlations on off diagonal, h2 in column F
D10: After you change 1) which index is used or 2) which traits you measure, you need to run the purple button
F12: This button will set up the index, and outputsinformation to the selection index sheet
F13: Cell A20 is a dropdown with index names
M14: Trait | N14: Trait | O14: Trait | P14: Age at | R14: Trait
D15: Important information needs to be given about | L15: TRAIT RECORDING | M15: Abbreviation | N15: Measurement | O15: Measurement | P15: Measurement | Q15: Economic | R15: Measured | S15: Genomic
N16: Males | O16: Females | P16: in time units | Q16: Value | R16: in RefPop 0/1 | S16: reliability
F17: a trait will only be seen if there s a trait abbreviation (column B) | L17: Genotyping | M17: DNA | N17: 1 | O17: 0
L18: Birth weight | M18: bwt | N18: 0 | O18: 0 | P18: 0 | R18: 1.00 | S18: 0.0220
D19: To calculate the gain for a given scenario, push the purple button in 9C-10E
E20: scenarios can be defined by flock structure, mating ratio, age at selection, etc.
E21: but also by whether a trait is measured(males/females) or there is a GBV
K22: This button will show result of one run
K23: and compare them with the previous run
D25: or | G25: if you want to compare the same scenario with and without genomic seection
G26: it will take the genomic selection scenario as defined in cells 24 CD
G27: (e.g. malesgenotyped only, males + females genotyped)
D30: The | F30: button allows you to graph the accurcaues for each age class
F31: for a certain trait or the index
F32: Cell F6 is a dropdown with trait names
O33: These buttons will uses a macro, so you need to allowExcel usage of macros
D34: The parameter matrix sheet is hidden
D35: The economic values sheet is hidden
D36: You can look at these sheets by 'unhide' (right click on sheet tabs)
D37: You can edit the indexes and add your own index with economic values
C39: The program checks whether genetic parameters are consistent (positive definite correlation matrices)
C40: It does not handle | E40: Desired Gains | G40: (see for this MTINDEX_DESGAIN)
E41: Multiple Stage Selection
C48: Produced by | E48: Julius van der Werf
E49: University of New England
E50: Armidale, Australia
E51: julius.vanderwerf@une.edu.au
E52: http://www-personal.une.edu.au/~jvanderw/
E55: other tools:
E56: http://www-personal.une.edu.au/~jvanderw/software.htm

Sheet ControlCenter
A1: Control Centre
A2: INPUT | B2: light blue tends to be a parameter input cell
A3: FLOCK STRUCTURE | M3: Accurcay EBV | O3: Age Structure
A4: Nr of breeding females | B4: 60 | C4: if used in year 1 | H4: 13.87374077 | L4: Age | M4: Accuracy for | N4: t1 | O4: age at | P4: total nr in | R4: Nr Selected (latest run) | T4: Preset Age Structure
A5: Mating ratio (females/male) | B5: 3 | C5: 3 | F5: trait | L5: class | M5: males | N5: females | O5: prog drop | P5: age class | Q5: mean | R5: males | S5: females | T5: males | U5: females
A6: Nr sires used per year | B6: 20.0 | F6: t1 | L6: 1 | M6: 0.614 | N6: 0.387 | O6: 1 | P6: 480 | Q6: 6.70 | R6: 19.8 | S6: 59.4 | T6: 0.0 | U6: 0.0
A7: Weaning rate | B7: 800% | C7: 800% | L7: =L6+1 -> 2 | M7: 0.730 | N7: 0.646 | O7: =O6+1 -> 2 | P7: 466 | Q7: 5.96 | R7: 0.2 | S7: 0.6 | T7: 4.0 | U7: 100.0
A8: Nr progeny born per year | B8: 480 | L8: =L7+1 -> 3 | M8: 0.730 | N8: 0.646 | O8: =O7+1 -> 3 | P8: 452 | Q8: 5.21 | R8: 0.0 | S8: 0.0 | T8: 4.0 | U8: 70.0
A9: mortality rate | B9: 3% | L9: 4 | M9: 0.831 | N9: 0.666 | O9: 4 | P9: 438 | Q9: 4.47 | R9: 0.0 | S9: 0.0 | T9: 1.0 | U9: 60.0
A10: Earliest possible age of first drop males | B10: 1 | L10: 5 | M10: 0.877 | N10: 0.684 | O10: 5 | P10: 425 | Q10: 3.72 | R10: 0.0 | S10: 0.0 | T10: 1.0 | U10: 40.0
A11: Earliest possible age of first drop females | B11: 1 | L11: 6 | M11: 0.903 | N11: 0.700 | O11: 6 | P11: 412 | Q11: 2.98 | R11: 0.0 | S11: 0.0 | T11: 0.0 | U11: 30.0
A12: Max age class (years) | B12: 10 | L12: 7 | M12: 0.920 | N12: 0.714 | O12: 7 | P12: 400 | Q12: 2.23 | R12: 0.0 | S12: 0.0 | T12: 0.0 | U12: 0.0
L13: 8 | M13: 0.932 | N13: 0.727 | O13: 8 | P13: 388 | Q13: 1.49 | R13: 0.0 | S13: 0.0 | T13: 0.0 | U13: 0.0
A14: Optimized Generation Interval 0/1 | B14: YES | L14: 9 | M14: 0.941 | N14: 0.739 | O14: 9 | P14: 376 | Q14: 0.74 | R14: 0.0 | S14: 0.0 | T14: 0.0 | U14: 0.0
A15: gestation length (years) | B15: 0.42 | L15: 10 | M15: 0.948 | N15: 0.750 | O15: 10 | P15: 365 | Q15: 0.00 | R15: 0.0 | S15: 0.0 | T15: 0.0 | U15: 0.0
A16: parentage | B16: 2 | J16: Standard Deviation of Breeding Objective | M16: $0.54 | R16: 20 | S16: 60 | T16: =SUM(T6:T15) -> 10.0 | U16: =SUM(U6:U15) -> 300.0
A17: percent index emphasis males | B17: 100% | J17: RESULTS | L17: Previous Run | M17: Latest Run | N17: Difference | Q17: Average age of parents | R17: 1.01 | S17: 1.01 | T17: =MMULT(TRANSPOSE(O6:O15),T6:T15)/T16 -> 2.90 | U17: =MMULT(TRANSPOSE(O6:O15),U6:U15)/U16 -> 3.43
A18: percent index emphasis females | B18: 100% | K18: $Response/Year | L18: 0.88 | M18: 0.74 | N18: -15.1%
A19: INDEX USED | C19: index contains | K19: Index Accurcay | L19: 0.76 | M19: 0.73 | N19: -3.6% | O19: =M16^2 -> 0.296
A20: I1 | B20: 2 | C20: traits | K20: gen_interval males | L20: 1.01 | M20: 1.01 | N20: 0.0% | O20: =L19^2*O19 -> 0.1692409728
B21: Trait | C21: Trait | D21: Trait | E21: Age at | G21: Trait | K21: gen_interval females | L21: 1.01 | M21: 1.01 | N21: 0.1%
A22: TRAIT RECORDING | B22: Abbreviation | C22: Measurement | D22: Measurement | E22: Measurement | F22: Economic | G22: Measured | H22: Genomic | L22: Response/Year | O22: Response/year | Q22: EBV accuracies | S22: EBV accuracies young males
C23: Males | D23: Females | E23: in time units | F23: Value | G23: in RefPop 0/1 | H23: reliability | L23: in trait units | O23: in $ Value | Q23: averaged of selected parents | S23: age class 2 selected at 18 mo
A24: Genotyping | B24: DNA | C24: 1 | D24: 1 | J24: Trait | K24: units | L24: =L17 -> Previous Run | M24: =M17 -> Latest Run | N24: %change | O24: =L24 -> Previous Run | P24: =M24 -> Latest Run | Q24: =L24 -> Previous Run | R24: =M24 -> Latest Run | S24: =L24 -> Previous Run | T24: =M24 -> Latest Run
A25: Trait 1 | B25: t1 | C25: 1 | D25: 1 | E25: 0.2 | F25: 1.00 | G25: 1 | H25: 0.6400 | J25: t1 | L25: 0.83 | M25: 0.83 | N25: -1% | O25: $0.83 | P25: $0.83 | Q25: 0.84 | R25: 0.85 | S25: 0.84 | T25: 0.85 | U25: =T25/S25 -> 1.001302359
A26: Trait 2 | B26: t2 | C26: 1 | D26: 1 | E26: 0.2 | F26: 1.00 | G26: 0 | H26: 0.6400 | J26: t2 | L26: 0.04 | M26: -0.08 | N26: -285% | O26: $0.04 | P26: $(0.08) | Q26: 0.42 | R26: 0.47 | S26: 0.42 | T26: 0.47
J27: I1 | K27: $ | L27: 0.88 | M27: 0.74 | N27: -15% | O27: $0.88 | P27: $0.74 | Q27: 0.76 | R27: 0.73 | S27: 0.76 | T27: 0.73
J60: =(T25-S25)/S25 -> 0% | K60: =N19 -> -3.6% | L60: =N18 -> -15.1%

Sheet Genetic Parameters
A1: Number of traits | B1: 2 | F1: MERINO | G1: Genetic variance-correlation matrix | K1: 11 | L1: 12 | M1: 13 | N1: 14 | O1: 15 | P1: 16 | Q1: 17 | R1: 18 | S1: 19 | T1: 20 | U1: 21 | V1: 22 | W1: 23 | X1: 24 | Y1: 25 | Z1: 26 | AA1: 27 | AB1: 28 | AC1: 29 | AD1: 30 | AE1: 31 | AF1: 32 | AG1: 33 | AH1: 34 | AI1: 35 | AJ1: 36 | AK1: 37 | AL1: 38 | AM1: 39 | AN1: 40 | AO1: 41 | AP1: 42 | AQ1: 43 | AR1: 44 | AS1: 45 | AT1: 46 | AU1: 47 | AV1: 48 | AW1: 49 | AX1: 50 | AY1: 52 | AZ1: 53 | BA1: 54 | BB1: 55 | BC1: 56 | BD1: 57 | BE1: 58 | BF1: 59 | BG1: 60 | BH1: 61 | BI1: 62 | BJ1: 63 | BK1: 64 | BL1: 65 | BM1: 66 | BN1: 67 | BP1: economic values
B2: ABBREV | C2: UNITS | F2: H2 | G2: =B3 -> t1 | H2: =B4 -> t2 | BP2: Economic value
A3: Trait 1 | B3: t1 | F3: 0.300 | G3: 0.3 | H3: -0.3 | BP3: 0
A4: Trait 2 | B4: t2 | F4: 0.100 | G4: -0.3 | H4: 0.1 | BP4: 0
BP5: 0
BP6: 0
BP7: 0
BP8: 0
BP9: 0
BP10: 0
BP11: 0
BP12: 0
BP13: 0
BP14: 0
BP15: 0
BP16: 0
BP17: 0
BP18: 0
BP19: 0
BP20: 0
BP21: 0
BP22: 0
BP23: 0
BP24: 0
BP25: 0
BP26: 0
BP27: 0
BP28: 0
BP29: 0
BP30: 0
BP31: 0
BP32: 0
BP33: 0
BP34: 0
BP35: 0
BP36: 0
BP37: 0
BP38: 0
BP39: 0
BP40: 1.04
BP41: 0
BP42: 0
BP43: 0
BP44: 0
BP45: 0
BP46: 0
BP47: 0
BP48: 0
BP49: 0
BP50: 0
BP51: 0
BP52: 0
BP53: 0
BP54: 0
BP55: 0
BP56: 0
BP57: 0
BP58: 0
BP59: 0
BP60: 0
BP61: 0
BP62: 0
BP63: 0
G64: Phenotypic variance-correlation matrix (first bunch is zero, these are objective traits
G65: conf | H65: dress
A66: =A3 -> Trait 1 | B66: =B3 -> t1 | G66: 1 | H66: -0.5
A67: Trait 2 | B67: =B4 -> t2 | G67: -0.5 | H67: 1

Sheet Selection Index Sheet
A1: Input | C1: light blue cells | D1: 40 | E1: Max number of traits
A2: Index type | B2: I1 | I2: Breedng Objective SD | J2: 0.54 | U2: age class | V2: 4
A3: 2 | B3: Nr of traits | D3: Parameters | U3: sex | V3: 1
D4: Phenotypic Stand. Dev. | E4: Heritability | F4: Repeatability | G4: c2 among full sibs | H4: Economic Value | I4: Genetic Stand. Deviation | K4: Trait | L4: Age first | M4: Genomic | O4: Number of records | U4: Male | V4: Female | W4: Male | X4: Female
A5: Trait | B5: Name | C5: Units | I5: Physical | J5: Dollar value | K5: Measurement | L5: Measurement | M5: Reliability | N5: own | O5: dam | P5: sire | Q5: full sibs | R5: half sibs | S5: progeny | T5: Genotyp | U5: Accuracy | V5: Accuracy | W5: Resp | X5: Resp
A6: 1 | B6: t1 | D6: 1.00 | E6: 0.30 | F6: 0.50 | G6: 0.00 | H6: 1.00 | I6: 0.55 | J6: 0.55 | K6: 2 | L6: 0.2 | M6: 0.64
A7: 2 | B7: t2 | D7: 1.00 | E7: 0.10 | F7: 0.30 | G7: 0.00 | H7: 1.00 | I7: 0.32 | J7: 0.32 | K7: 2 | L7: 0.2 | M7: 0.00
A8: 3
A9: 4
A10: 5
A11: 6
A12: 7
A13: 8
A14: 9
A15: 10
A16: 11
A17: 12
A18: 13
A19: 14
A20: 15
A21: 16
A22: 17
A23: 18
A24: 19
A25: 20
A26: 21
A27: 22
A28: 23
A29: 24
A30: 25
A31: 26
A32: 27
A33: 28
A34: 29
B46: 0 | C46: 0 | D46: 0.00 | T46: INDEX | U46: 0.512 | W46: 7.106
C47: 0 | D47: 0
C48: 1 | D48: 0
A49: Correlation Structure
C50: 1 | D50: 2 | E50: phenotypic | H50: Residual Covariance matrix POSITIVE DEFINITE
A51: t1 | B51: 1
A52: t2 | B52: 2 | C52: -0.30
B53: genetic
A59: Genetic Covariance matrix
A60: POSITIVE DEFINITE
A97: ntraits | C97: 2
A100: Genetic Covariance matrix as given (correlations below diagonal) | G100: Genetic Covariance matrix POSITIVE DEFINITE
A101: 0.30 | B101: -0.05
A102: -0.30 | B102: 0.10
A150: Residual Covariance matrix as given (correlations below diagonal) | G150: Residual Covariance matrix POSITIVE DEFINITE
A151: 0.70 | B151: 0.05
A152: 0.07 | B152: 0.90

Sheet Economic values - Indexes
A1: Max number of traits | B1: 2 | C1: only list traits with an economic value
A2: trait abbrev need to correspond with Genetic Parameters | B2: Merino Index Economic Values
A3: INDEX | B3: I1 | C3: I2 | D3: I3
A4: t1 | B4: 1 | C4: 1 | D4: 0
A5: t2 | B5: 1.00 | C5: 1.00 | D5: 1.00
B34: =TRANSPOSE(B3:I3) -> I1
B35: I2
B36: I3
B37: 0
B38: 0
B39: 0
B40: 0
B41: 0

Sheet Age optimization (hidden)
J1: Threshold
J2: 7.39 | K2: 7.16 | L2: FIX AGE CLASS PROPRTIONS HERE
A3: age when | D3: males | E3: females | F3: males | G3: females | H3: males | I3: females | J3: males | K3: females | M3: males | N3: females | P3: males | Q3: females
A4: progeny drop | B4: N in group | C4: mean | D4: accuracy | E4: accuracy | F4: Proportion Selected | H4: Nr Selected | J4: Mean of selected | M4: Nr Selected | P4: proportion of selected
A5: 1 | B5: 480 | C5: 6.70 | D5: 0.728 | E5: 0.728 | F5: 0.041 | G5: 0.124 | H5: 19.8 | I5: 59.4 | J5: 7.54 | K5: 7.36 | M5: 0 | N5: 0 | P5: 0.99 | Q5: 0.99 | R5: =TRANSPOSE(Q16:Z16)*2 -> 0.00
A6: =A5+1 -> 2 | B6: 466 | C6: 5.96 | D6: 0.784 | E6: 0.734 | F6: 0.000 | G6: 0.001 | H6: 0.2 | I6: 0.6 | J6: 7.18 | K6: 7.17 | M6: 4 | N6: 100 | P6: 0.01 | Q6: 0.01 | R6: 0.40
A7: =A6+1 -> 3 | B7: 452 | C7: 5.21 | D7: 0.820 | E7: 0.739 | F7: 0.000 | G7: 0.000 | H7: 0.0 | I7: 0.0 | J7: 5.21 | K7: 5.21 | M7: 3 | N7: 70 | P7: 0.00 | Q7: 0.00 | R7: 0.28
A8: 4 | B8: 438 | C8: 4.47 | D8: 0.846 | E8: 0.745 | F8: 0.000 | G8: 0.000 | H8: 0.0 | I8: 0.0 | J8: 4.47 | K8: 4.47 | M8: 2 | N8: 60 | P8: 0.00 | Q8: 0.00 | R8: 0.17
A9: 5 | B9: 425 | C9: 3.72 | D9: 0.865 | E9: 0.750 | F9: 0.000 | G9: 0.000 | H9: 0.0 | I9: 0.0 | J9: 3.72 | K9: 3.72 | M9: 1 | N9: 40 | P9: 0.00 | Q9: 0.00 | R9: 0.09
A10: 6 | B10: 412 | C10: 2.98 | D10: 0.880 | E10: 0.755 | F10: 0.000 | G10: 0.000 | H10: 0.0 | I10: 0.0 | J10: 2.98 | K10: 2.98 | M10: 0 | N10: 30 | P10: 0.00 | Q10: 0.00 | R10: 0.04
A11: 7 | B11: 400 | C11: 2.23 | D11: 0.892 | E11: 0.759 | F11: 0.000 | G11: 0.000 | H11: 0.0 | I11: 0.0 | J11: 2.23 | K11: 2.23 | M11: 0 | N11: 0 | P11: 0.00 | Q11: 0.00 | R11: 0.01
A12: 8 | B12: 388 | C12: 1.49 | D12: 0.902 | E12: 0.764 | F12: 0.000 | G12: 0.000 | H12: 0.0 | I12: 0.0 | J12: 1.49 | K12: 1.49 | M12: 0 | N12: 0 | P12: 0.00 | Q12: 0.00 | R12: 0.00
A13: 9 | B13: 376 | C13: 0.74 | D13: 0.910 | E13: 0.768 | F13: 0.000 | G13: 0.000 | H13: 0.0 | I13: 0.0 | J13: 0.74 | K13: 0.74 | M13: 0 | N13: 0 | P13: 0.00 | Q13: 0.00 | R13: 0.00
A14: 10 | B14: 365 | C14: 0.00 | D14: 0.917 | E14: 0.772 | F14: 0.000 | G14: 0.000 | H14: 0.0 | I14: 0.0 | J14: 0.00 | K14: 0.00 | M14: 0 | N14: 0 | P14: 0.00 | Q14: 0.00 | R14: 0.00
H15: =SUM(H5:H14) -> 19.99 | I15: =SUM(I5:I14) -> 60.0 | J15: 0.84 | K15: 0.66 | L15: Superiotity | M15: =SUM(M5:M14) -> 10 | N15: =SUM(N5:N14) -> 300
H16: Total | I16: Total | J16: 1.01 | K16: 1.01 | L16: Age of selected (GenInt) | Q16: 0 | R16: 0.1987480971 | S16: 0.1413811454 | T16: 0.08652980082 | U16: 0.04515620027 | V16: 0.01913688029 | W16: 0.006652527132 | X16: 0.001881396713 | Y16: 0.0004328368399 | Z16: 8.111537963e-05
J19: progress per year | L19: =Q22 -> 0.7449 | M19: is | N19: =L19/ControlCenter!#REF! ->  | O19: of SDBreedObj
M20: is | N20: =L19/(ControlCenter!#REF!*ControlCenter!M19) ->  | O20: of SDIndex
L21: males | M21: females
J22: parent superiority | L22: 0.84 | M22: 0.66 | N22: ="=" -> = | O22: =AVERAGE(L22:M22) -> 0.75 | P22: ="=" -> = | Q22: =O22/O23 -> 0.7448716358 | R22: dG/yr
J23: generation interval | L23: 1.01 | M23: 1.01 | O23: =AVERAGE(L23:M23) -> 1.01
N26: 5
J27: =MMULT(TRANSPOSE(P5:P14),J5:J14) -> 7.537890074
V31: 22 | W31: 23 | X31: 24 | Y31: 25 | Z31: 26
B34: Responses | D34: numbers per trait are genetic chnages per unit of SD, in the mean they are weighted 9and multiplied) by selection intensity
V35: Average | W35: Average | X35: Average
A36: age | B36: 1 | C36: 2 | D36: 3 | E36: 4 | F36: 5 | G36: 6 | H36: 7 | I36: 8 | U36: 10 | V36: males | W36: females | X36: overall
A37: sex | B37: 1 | C37: 1 | D37: 1 | E37: 1 | F37: 1 | G37: 1 | H37: 1 | I37: 1 | U37: 2 | V37: GenInterv | W37: GenInterv | X37: GenInterv
A38: prop of all selected | B38: 0 | C38: 0.5225007874 | D38: 0.311998153 | E38: 0.1174041992 | F38: 0.03610071605 | G38: 0.009409145615 | H38: 0.002098960826 | I38: 0.0004020159382 | U38: 8.822297449e-06 | V38: 2.706169367 | W38: 5.40402623 | X38: 2.739905007
A39: selint | B39: 0 | C39: 2.264246181 | D39: 2.384272752 | E39: 2.572001032 | F39: 2.55014644 | G39: 1.56739161 | H39: 0 | I39: 0 | U39: 0 | V39: Accuracy | W39: Accuracy | X39: Accuracy
A40: Ind Accurac | B40: 0.6157477308 | C40: 0.6157601814 | D40: 0.7223638798 | E40: 0.7595495135 | F40: 0.7786500433 | G40: 0.7903106197 | H40: 0.7981785633 | I40: 0.8038485666 | U40: 0.5922677802 | V40: 0.6738912336 | W40: 0.638718087 | X40: 0.5935059909
A42: t1 | V42: 0.9377667911 | W42: 0.7329855628 | X42: 0.8277331153
A43: t2 | V43: -0.09360284372 | W43: -0.07365035591 | X43: -0.08286147953
A44: pwt | V44: 2.47153332 | W44: 0.5918564369 | X44: 0.3802875735
A45: pemd | V45: 0.1662034294 | W45: 0.03564606783 | X45: 0.02505748913
A46: pfat | V46: -0.02295185245 | W46: -0.003456401533 | X46: -0.00327830659
A47: pfec | V47: 0.1489085284 | W47: 0.03837398987 | X47: 0.02324915212
A48: ywt | V48: 3.894265007 | W48: 0.9678358186 | X48: 0.603578608
A49: yemd | V49: 0.2299693456 | W49: 0.0523623784 | X49: 0.03504850991
A50: yfat | V50: -0.01594487473 | W50: 0.0001431885853 | X50: -0.001961612906
A51: yfec | V51: 0.2436842065 | W51: 0.06481507306 | X51: 0.03829693633
A52: ygfw | V52: 5.654835918 | W52: 1.555232349 | X52: 0.8950540362
A53: ycfw | V53: 6.765691743 | W53: 1.795150196 | X53: 1.062738361
A54: yfd | V54: -0.08929642126 | W54: -0.02966110582 | X54: -0.01476732408
A55: ydcv | V55: 0.05337332164 | W55: 0.03131444296 | X55: 0.01051309401
A56: ysl | V56: 1.043377082 | W56: 0.3097026975 | X56: 0.1679706035
A57: yss | V57: 0.91566433 | W57: -0.002981027672 | X57: 0.1133000193
A58: conf | V58: 0 | W58: 0 | X58: 0
A59: dress | V59: 0.4895124673 | W59: 0.1174648388 | X59: 0.07534983964
A60: smy | V60: 0.2131201881 | W60: 0.05043393352 | X60: 0.03271746835
A61: long | V61: 0 | W61: 0 | X61: 0
A62: awt | V62: 3.525401453 | W62: 0.8660638818 | X62: 0.5451541688
A63: agfw | V63: 5.210522775 | W63: 1.712977588 | X63: 0.8594796492
A64: acfw | V64: 5.908052353 | W64: 1.834675903 | X64: 0.9611781636
A65: afd | V65: -0.04982962325 | W65: -0.02035867941 | X65: -0.008713138525
A66: adcv | V66: 0.141796393 | W66: 0.06809652189 | X66: 0.02605599472
A67: asl | V67: 1.263558067 | W67: 0.4271618137 | X67: 0.2098850658
A68: ass | V68: 0.4277807334 | W68: -0.1114376896 | X68: 0.03927065705
A69: nlw | V69: 0.1019086156 | W69: 0.028534398 | X69: 0.01619312626
A70: hwt | V70: 3.992275132 | W70: 0.9841217887 | X70: 0.6177672644
W79: 23 | X79: 24 | Y79: 25 | Z79: 26
B94: Accuracies
A96: =A36 -> age | B96: 1 | C96: 2 | D96: 3 | E96: 4 | F96: 5 | G96: 6 | H96: 7 | I96: 8 | J96: 9 | K96: 10 | L96: 1 | M96: 2 | N96: 3 | O96: 4 | P96: 5 | Q96: 6 | R96: 7 | S96: 8 | T96: 9 | U96: 10 | V96: mean | W96: mean | X96: mean
A97: =A37 -> sex | B97: 1 | C97: 1 | D97: 1 | E97: 1 | F97: 1 | G97: 1 | H97: 1 | I97: 1 | J97: 1 | K97: 1 | L97: 2 | M97: 2 | N97: 2 | O97: 2 | P97: 2 | Q97: 2 | R97: 2 | S97: 2 | T97: 2 | U97: 2 | V97: males | W97: females | X97: all
A98: prop of all selected | B98: 0 | C98: 0.5225007874 | D98: 0.311998153 | E98: 0.1174041992 | F98: 0.03610071605 | G98: 0.009409145615 | H98: 0.002098960826 | I98: 0.0004020159382 | J98: 6.617639509e-05 | K98: 9.364199214e-06 | L98: 0 | M98: 0.5094554262 | N98: 0.2929967635 | O98: 0.133152677 | P98: 0.04747758812 | Q98: 0.0133283701 | R98: 0.002967623736 | S98: 0.0005283558741 | T98: 7.579983281e-05 | U98: 8.822297449e-06
A99: selint | B99: 0 | C99: 2.264246181 | D99: 2.384272752 | E99: 2.572001032 | F99: 2.55014644 | G99: 1.56739161 | H99: 0 | I99: 0 | J99: 0 | K99: 0 | L99: 0 | M99: 0.494336009 | N99: 0.8832470247 | O99: 1.331427961 | P99: 1.794484872 | Q99: 2.245805583 | R99: 2.624362046 | S99: 2.560593399 | T99: 0 | U99: 0
A101: t1 | B101: 0.8455069939 | C101: 0.8818682664 | D101: 0.9042310091 | E101: 0.9194175362 | F101: 0.9304203961 | G101: 0.9387658838 | H101: 0.945316211 | I101: 0.9505960363 | J101: 0.9549432547 | K101: 0.9585854586 | L101: 0.8455069939 | M101: 0.8493909681 | N101: 0.8530801848 | O101: 0.8565891831 | P101: 0.8599310704 | Q101: 0.8631176969 | R101: 0.866159804 | S101: 0.8690671526 | T101: 0.8718486334 | U101: 0.8745123627 | V101: 0.8454683135 | W101: 0.8453234036 | X101: 0.8453958586
A102: t2 | B102: 0.4727579693 | C102: 0.6132531259 | D102: 0.6912666077 | E102: 0.742153632 | F102: 0.7782800192 | G102: 0.8053627182 | H102: 0.8264648103 | I102: 0.8433914961 | J102: 0.8572813846 | K102: 0.8688904804 | L102: 0.4727579693 | M102: 0.4889718588 | N102: 0.5040385223 | O102: 0.5180954474 | P102: 0.5312562595 | Q102: 0.5436161247 | R102: 0.5552556668 | S102: 0.5662438701 | T102: 0.5766402754 | U102: 0.5864966681 | V102: 0.4738306069 | W102: 0.4727965237 | X102: 0.4733135653
A103: I1 | B103: 0.7281791498 | C103: 0.7837499276 | D103: 0.8201756634 | E103: 0.8459920024 | F103: 0.8652779833 | G103: 0.8802468146 | H103: 0.8922084663 | I103: 0.9019896153 | J103: 0.9101384302 | K103: 0.9170330669 | L103: 0.7281791498 | M103: 0.7339150817 | N103: 0.7394058799 | O103: 0.744667475 | P103: 0.7497143991 | Q103: 0.7545599407 | R103: 0.7592162794 | S103: 0.7636946026 | T103: 0.7680052072 | U103: 0.7721575891 | V103: 0.7395437268 | W103: 0.6286824893 | X103: 0.6841131081
B104: 0.142330694 | C104: 0.1912225659 | D104: 0.201957933 | E104: 0.2280788867 | F104: 0.2482743315 | G104: 0.2587906186 | H104: 0.265236757 | I104: 0.269610583 | J104: 0.2727849512 | K104: 0.2752010711 | L104: 0.142330694 | M104: 0.190493638 | N104: 0.2103577534 | O104: 0.213649167 | P104: 0.2187935143 | Q104: 0.220366706 | R104: 0.2233808912 | S104: 0.2261432502 | T104: 0.2286810326 | U104: 0.2310196193 | V104: 0.2299562533 | W104: 0.2060606814 | X104: 0.2180084674
B105: 0.07474396309 | C105: 0.1161494238 | D105: 0.1187279918 | E105: 0.1392108498 | F105: 0.1535134081 | G105: 0.1625616498 | H105: 0.168926621 | I105: 0.1737194275 | J105: 0.1774950639 | K105: 0.1805656655 | L105: 0.07474396309 | M105: 0.1134072954 | N105: 0.1239825128 | O105: 0.126826298 | P105: 0.1307047823 | Q105: 0.1312775351 | R105: 0.1334248989 | S105: 0.1354133558 | T105: 0.1372615857 | U105: 0.138985799 | V105: 0.1425022389 | W105: 0.1223886138 | X105: 0.1324454263
B106: 0.0692583128 | C106: 0.09822783051 | D106: 0.1033258727 | E106: 0.1181126835 | F106: 0.1288113755 | G106: 0.135076072 | H106: 0.1392417864 | I106: 0.1422430558 | J106: 0.144524219 | K106: 0.1463252772 | L106: 0.0692583128 | M106: 0.09810469593 | N106: 0.1071573821 | O106: 0.1089377213 | P106: 0.1123707785 | Q106: 0.1128494548 | R106: 0.1145532015 | S106: 0.1161179701 | T106: 0.1175602119 | U106: 0.1188943978 | V106: 0.1194444947 | W106: 0.1055491128 | X106: 0.1124968038
B107: 0.5275380265 | C107: 0.6864884138 | D107: 0.7385903727 | E107: 0.837522221 | F107: 0.8845440712 | G107: 0.910834173 | H107: 0.9274703272 | I107: 0.9389078579 | J107: 0.9472426281 | K107: 0.9535820951 | L107: 0.5275380265 | M107: 0.6861430328 | N107: 0.6939867935 | O107: 0.7097612724 | P107: 0.7249895227 | Q107: 0.738773375 | R107: 0.7513867175 | S107: 0.7628639251 | T107: 0.7733357826 | U107: 0.782922112 | V107: 0.8191125641 | W107: 0.70325097 | X107: 0.761181767
B108: 0.1738807147 | C108: 0.2550597132 | D108: 0.2596196138 | E108: 0.3016059444 | F108: 0.321957355 | G108: 0.3330944403 | H108: 0.3401528727 | I108: 0.3450513182 | J108: 0.3486647901 | K108: 0.3514494304 | L108: 0.1738807147 | M108: 0.2550086883 | N108: 0.2631296055 | O108: 0.2682408797 | P108: 0.2738320617 | Q108: 0.277713491 | R108: 0.2818487326 | S108: 0.2856226574 | T108: 0.2890778078 | U108: 0.2922521567 | V108: 0.2990190826 | W108: 0.2642104255 | X108: 0.281614754
B109: 0.1147030661 | C109: 0.1822614004 | D109: 0.1845163454 | E109: 0.2174983111 | F109: 0.2351160558 | G109: 0.2455163793 | H109: 0.2524151942 | I109: 0.2573563349 | J109: 0.2610866337 | K109: 0.2640121995 | L109: 0.1147030661 | M109: 0.1774583987 | N109: 0.1848194523 | O109: 0.1897625406 | P109: 0.1942377503 | Q109: 0.1966586757 | R109: 0.1999810552 | S109: 0.2030324779 | T109: 0.2058465189 | U109: 0.2084516923 | V109: 0.217791926 | W109: 0.1856340374 | X109: 0.2017129817
B110: 0.1048573539 | C110: 0.1568892285 | D110: 0.1597379945 | E110: 0.1845382267 | F110: 0.1981096882 | G110: 0.2055857026 | H110: 0.2103400485 | I110: 0.213648325 | J110: 0.2160938051 | K110: 0.21798123 | L110: 0.1048573539 | M110: 0.1568731254 | N110: 0.165334429 | O110: 0.168202902 | P110: 0.1722324152 | Q110: 0.1737346 | R110: 0.176188008 | S110: 0.1784310275 | T110: 0.1804879744 | U110: 0.1823807193 | V110: 0.1842744677 | W110: 0.164670288 | X110: 0.1744723778
B111: 0.4045786556 | C111: 0.6057374536 | D111: 0.6181579049 | E111: 0.7318696702 | F111: 0.786491242 | G111: 0.8139433906 | H111: 0.8305258256 | I111: 0.8416579064 | J111: 0.8496599265 | K111: 0.8556949242 | L111: 0.4045786556 | M111: 0.6048476813 | N111: 0.6473642629 | O111: 0.65924906 | P111: 0.6729991114 | Q111: 0.681500139 | R111: 0.6911612787 | S111: 0.6999929917 | T111: 0.7080946444 | U111: 0.7155524609 | V111: 0.7225729068 | W111: 0.6414953665 | X111: 0.6820341367
B112: 0.4379625335 | C112: 0.6746177386 | D112: 0.6836208964 | E112: 0.8184376695 | F112: 0.8738737483 | G112: 0.9030509794 | H112: 0.9211612523 | I112: 0.9335296329 | J112: 0.9425247444 | K112: 0.9493658332 | L112: 0.4379625335 | M112: 0.6733837875 | N112: 0.6953068923 | O112: 0.7106252812 | P112: 0.725534732 | Q112: 0.7379041909 | R112: 0.749690291 | S112: 0.7604449025 | T112: 0.7702957785 | U112: 0.7793523293 | V112: 0.8027281964 | W112: 0.6990396504 | X112: 0.7508839234
B113: 0.5488020991 | C113: 0.8024817242 | D113: 0.8041057745 | E113: 0.8941181907 | F113: 0.928176528 | G113: 0.9454885387 | H113: 0.9560096633 | I113: 0.9630982634 | J113: 0.9682057284 | K113: 0.9720639734 | L113: 0.5488020991 | M113: 0.8024324929 | N113: 0.8269078539 | O113: 0.8362103117 | P113: 0.8447569306 | Q113: 0.8519795326 | R113: 0.8588052575 | S113: 0.8650226971 | T113: 0.8707100931 | U113: 0.8759328576 | V113: 0.8820475701 | W113: 0.8249918561 | X113: 0.8535197131
B114: 0.4494800551 | C114: 0.700228116 | D114: 0.7012698802 | E114: 0.8335139167 | F114: 0.8859862967 | G114: 0.9129926027 | H114: 0.9295182085 | I114: 0.9407013617 | J114: 0.9487851658 | K114: 0.9549077742 | L114: 0.4494800551 | M114: 0.696959467 | N114: 0.7249009087 | O114: 0.7422360734 | P114: 0.7542768685 | Q114: 0.7645198224 | R114: 0.7753665456 | S114: 0.7852338958 | T114: 0.7942504613 | U114: 0.8025233224 | V114: 0.8183285922 | W114: 0.7263136998 | X114: 0.772321146
B115: 0.1977883518 | C115: 0.3203431732 | D115: 0.3214693512 | E115: 0.3850585917 | F115: 0.4139473585 | G115: 0.4304994306 | H115: 0.44131979 | I115: 0.4489778824 | J115: 0.4546966551 | K115: 0.4591365572 | L115: 0.1977883518 | M115: 0.3126479866 | N115: 0.3156839905 | O115: 0.3240251178 | P115: 0.33192613 | Q115: 0.3383903911 | R115: 0.3447559913 | S115: 0.3505853092 | T115: 0.3559436016 | U115: 0.3608870188 | V115: 0.3818145537 | W115: 0.3208341059 | X115: 0.3513243298
B116: 0.3655685082 | C116: 0.6419958961 | D116: 0.6423151274 | E116: 0.7560526166 | F116: 0.8118781271 | G116: 0.8459885491 | H116: 0.8692608313 | I116: 0.886248473 | J116: 0.8992356852 | K116: 0.9095068879 | L116: 0.3655685082 | M116: 0.5234384457 | N116: 0.5441307258 | O116: 0.6072514776 | P116: 0.5820565162 | Q116: 0.5986322211 | R116: 0.6137833663 | S116: 0.627688928 | T116: 0.6405086792 | U116: 0.6523752822 | V116: 0.7560267663 | W116: 0.5589172526 | X116: 0.6574720094
B117: 0 | C117: 0 | D117: 0 | E117: 0 | F117: 0 | G117: 0 | H117: 0 | I117: 0 | J117: 0 | K117: 0 | L117: 0 | M117: 0 | N117: 0 | O117: 0 | P117: 0 | Q117: 0 | R117: 0 | S117: 0 | T117: 0 | U117: 0 | V117: 0 | W117: 0 | X117: 0
B118: 0.1859215494 | C118: 0.2634027718 | D118: 0.2739501636 | E118: 0.3188205964 | F118: 0.3400459728 | G118: 0.35205396 | H118: 0.3598039623 | I118: 0.3652456063 | J118: 0.3692928323 | K118: 0.3724305699 | L118: 0.1859215494 | M118: 0.2627960474 | N118: 0.2654359151 | O118: 0.2718093459 | P118: 0.2780902893 | Q118: 0.2833305628 | R118: 0.288368489 | S118: 0.2929581445 | T118: 0.2971527211 | U118: 0.3009999508 | V118: 0.3143050756 | W118: 0.2693563623 | X118: 0.291830719
B119: 0.07110391498 | C119: 0.1107682023 | D119: 0.1121867301 | E119: 0.1345079942 | F119: 0.1465981679 | G119: 0.1533828656 | H119: 0.157719924 | I119: 0.1607402328 | J119: 0.1629712541 | K119: 0.1646910545 | L119: 0.07110391498 | M119: 0.1106689132 | N119: 0.1138481677 | O119: 0.1165023275 | P119: 0.1194836892 | Q119: 0.1216877844 | R119: 0.1240064726 | S119: 0.1261345074 | T119: 0.1280907381 | U119: 0.1298938698 | V119: 0.1345786323 | W119: 0.1148349506 | X119: 0.1247067915
B120: 0 | C120: 0 | D120: 0 | E120: 0 | F120: 0 | G120: 0 | H120: 0 | I120: 0 | J120: 0 | K120: 0 | L120: 0 | M120: 0 | N120: 0 | O120: 0 | P120: 0 | Q120: 0 | R120: 0 | S120: 0 | T120: 0 | U120: 0 | V120: 0 | W120: 0 | X120: 0
B121: 0.4420555779 | C121: 0.5642251951 | D121: 0.6120102129 | E121: 0.6881702259 | F121: 0.7295151413 | G121: 0.7536185775 | H121: 0.7694228368 | I121: 0.7806397591 | J121: 0.7890494715 | K121: 0.7956103322 | L121: 0.4420555779 | M121: 0.5641352889 | N121: 0.5779129828 | O121: 0.5905103954 | P121: 0.6041383537 | Q121: 0.6140089765 | R121: 0.6242372159 | S121: 0.6335585703 | T121: 0.6420802284 | U121: 0.6498985702 | V121: 0.6769429113 | W121: 0.5828210357 | X121: 0.6298819735
B122: 0.4110006195 | C122: 0.5366252311 | D122: 0.5848854086 | E122: 0.6484556505 | F122: 0.7824592294 | G122: 0.8426703412 | H122: 0.8767325896 | I122: 0.8986419299 | J122: 0.9139224719 | K122: 0.9251902113 | L122: 0.4110006195 | M122: 0.5364967463 | N122: 0.7554653834 | O122: 0.7586942474 | P122: 0.7833711413 | Q122: 0.7743169384 | R122: 0.7814581423 | S122: 0.7881368385 | T122: 0.7943905784 | U122: 0.8002575764 | V122: 0.7074615589 | W122: 0.68305507 | X122: 0.6952583144
A123: acfw | B123: 0.3976632936 | C123: 0.5483414777 | D123: 0.5779456579 | E123: 0.6576855712 | F123: 0.7562990927 | G123: 0.8016812567 | H123: 0.8275949811 | I123: 0.8443443273 | J123: 0.8560611562 | K123: 0.8647188799 | L123: 0.3976632936 | M123: 0.5482968959 | N123: 0.7043855834 | O123: 0.7095337878 | P123: 0.7290669168 | Q123: 0.7252523498 | R123: 0.7323289207 | S123: 0.7388906898 | T123: 0.7449869507 | U123: 0.7506646231 | V123: 0.6894110806 | W123: 0.6547649835 | X123: 0.6720880321
A124: afd | B124: 0.5090844999 | C124: 0.7014058884 | D124: 0.7188597624 | E124: 0.7882711292 | F124: 0.858335419 | G124: 0.8943634777 | H124: 0.9158440869 | I124: 0.9300566766 | J124: 0.9401493967 | K124: 0.9476868258 | L124: 0.5090844999 | M124: 0.7010557912 | N124: 0.8295348408 | O124: 0.8338174874 | P124: 0.8481215524 | Q124: 0.8447609185 | R124: 0.8498395257 | S124: 0.8545631662 | T124: 0.8589637234 | U124: 0.8630729191 | V124: 0.8089371581 | W124: 0.7882329655 | X124: 0.7985850618
A125: adcv | B125: 0.4183415784 | C125: 0.610894186 | D125: 0.6291623199 | E125: 0.7311612357 | F125: 0.8118497712 | G125: 0.854444706 | H125: 0.8806217197 | I125: 0.8984204186 | J125: 0.9113682638 | K125: 0.9212471552 | L125: 0.4183415784 | M125: 0.6075355639 | N125: 0.71773988 | O125: 0.7279257407 | P125: 0.7485942825 | Q125: 0.746588036 | R125: 0.7557296643 | S125: 0.7641564629 | T125: 0.7719424397 | U125: 0.7791571636 | V125: 0.7470961851 | W125: 0.6871976904 | X125: 0.7171469377
A126: asl | B126: 0.1879136566 | C126: 0.2598551229 | D126: 0.2798268418 | E126: 0.317024758 | F126: 0.376435783 | G126: 0.4064011517 | H126: 0.4241826199 | I126: 0.4359333082 | J126: 0.4442771581 | K126: 0.4505109608 | L126: 0.1879136566 | M126: 0.2533420391 | N126: 0.3396881756 | O126: 0.3432818085 | P126: 0.3555070303 | Q126: 0.3529346301 | R126: 0.3576991273 | S126: 0.3621393375 | T126: 0.3662797555 | U126: 0.3701476018 | V126: 0.341958857 | W126: 0.3128624731 | X126: 0.327410665
A127: ass | B127: 0.3265378298 | C127: 0.5366917944 | D127: 0.5399315251 | E127: 0.6273247949 | F127: 0.6761898159 | G127: 0.7066602172 | H127: 0.7279846547 | I127: 0.7439730091 | J127: 0.7565138672 | K127: 0.766669403 | L127: 0.3265378298 | M127: 0.457493308 | N127: 0.509593564 | O127: 0.5489387573 | P127: 0.5383607307 | Q127: 0.5441001603 | R127: 0.5538899356 | S127: 0.5629514542 | T127: 0.5713713672 | U127: 0.5792227942 | V127: 0.6323707114 | W127: 0.5053724653 | X127: 0.5688715883
A128: nlw | B128: 0.1570781742 | C128: 0.1905599173 | D128: 0.2409036091 | E128: 0.2584280314 | F128: 0.3918300123 | G128: 0.4740600059 | H128: 0.5333824603 | I128: 0.5792252271 | J128: 0.6161189412 | K128: 0.6466398294 | L128: 0.1570781742 | M128: 0.19011993 | N128: 0.3377025893 | O128: 0.3391414768 | P128: 0.3736109352 | Q128: 0.3583787823 | R128: 0.3673667903 | S128: 0.3759634596 | T128: 0.3842010933 | U128: 0.3921096848 | V128: 0.3553804743 | W128: 0.2918768184 | X128: 0.3236286463
A129: hwt | B129: 0.4849667276 | C129: 0.6207994122 | D129: 0.6732785952 | E129: 0.7599732767 | F129: 0.8029602867 | G129: 0.8275266878 | H129: 0.8433786624 | I129: 0.8544713637 | J129: 0.8626845895 | K129: 0.8690218207 | L129: 0.4849667276 | M129: 0.6205411495 | N129: 0.6293642742 | O129: 0.6436648783 | P129: 0.6579025511 | Q129: 0.6700900495 | R129: 0.681583908 | S129: 0.6920475119 | T129: 0.7016005518 | U129: 0.7103520426 | V129: 0.7438445431 | W129: 0.6372134834 | X129: 0.6905290132
A130: DP3 | B130: 0.2025049085 | C130: 0.2737208581 | D130: 0.3133088349 | E130: 0.3534869396 | F130: 0.4579464245 | G130: 0.5255017526 | H130: 0.5747108562 | I130: 0.6128945051 | J130: 0.6437061232 | K130: 0.669248869 | L130: 0.2025049085 | M130: 0.267172003 | N130: 0.3719217948 | O130: 0.3780810021 | P130: 0.4056220292 | Q130: 0.3973290949 | R130: 0.4069574324 | S130: 0.4160551957 | T130: 0.4246682876 | U130: 0.4328423116
